fUSD/lending_fUSD_20240204
["ID","MTS","AMOUNT","RATE_DAILY","PERIOD"]
[313263661,1707057581899,887.28344424,0.00021923,2]
[313263662,1707057583588,1112.71655576,0.00022,2]
[313263663,1707057583617,633.74333535,0.00022,2]
[313263664,1707057588786,1366.25666465,0.00021921,2]
[313263665,1707057588807,1207.12333535,0.00021921,2]
[313263666,1707057597924,792.87666465,0.00021923,2]
[313263667,1707057597947,94.40677959,0.00021923,2]
[313263668,1707057609489,1905.59322041,0.00021946,2]
[313263669,1707057609510,718.00677959,0.00021946,2]
[313263670,1707057617908,887.28344424,0.00021923,2]
[313263671,1707057635904,394.70977617,0.00021923,2]
[313263672,1707057635927,492.57366807,0.00021923,2]
[313263674,1707057642760,1507.42633193,0.00021944,2]
[313263675,1707057642780,2000.0,0.00021944,2]
[313263676,1707057642801,2000.0,0.00021944,2]
[313263677,1707057642822,2000.0,0.00021944,2]
[313263678,1707057642845,2000.0,0.00021944,2]
[313263679,1707057642866,2000.0,0.00021944,2]
[313263680,1707057642887,2000.0,0.00021944,2]
[313263681,1707057642908,2000.0,0.00021944,2]
[313263682,1707057642928,2000.0,0.00021944,2]
[313263683,1707057642949,2000.0,0.00021944,2]
[313263684,1707057642971,2000.0,0.00021944,2]
[313263685,1707057642992,1544.80366807,0.00021944,2]
[313263686,1707057652068,455.19633193,0.00021923,2]
[313263687,1707057652090,432.08711231,0.00021923,2]
[313263688,1707057663395,500.0,0.00021892,2]
[313263689,1707057675911,887.28344424,0.00021923,2]
[313263690,1707057688481,180.62944345,0.00021861,2]
[313263691,1707057688504,238.70055655,0.00021861,2]
[313263692,1707057691912,887.28344424,0.00021923,2]
[313263693,1707057693839,207.0,0.00021514,2]
[313263695,1707057704849,667.01599921,0.0002185,2]
[313263696,1707057704870,70.58400079,0.0002185,2]
[313263697,1707057717932,887.28344424,0.00021923,2]
[313263698,1707057733947,887.28344424,0.0002185,2]
[313263699,1707057755933,154.84911073,0.0002185,2]
[313263700,1707057755954,732.43433351,0.0002185,2]
[313263701,1707057764850,157.63,0.00021961,2]
[313263702,1707057773937,887.28344424,0.0002185,2]
[313263703,1707057783048,222.65222225,0.00021964,2]
[313263704,1707057783069,1179.35777775,0.00021964,2]
[313263705,1707057789944,820.64222225,0.00021961,2]
[313263706,1707057789967,66.64122199,0.00021961,2]
[313263707,1707057791626,204.76,0.00021793,2]
[313263708,1707057805944,887.28344424,0.00021961,2]
[313263709,1707057823938,841.31533377,0.00021961,2]
[313263710,1707057823961,45.96811047,0.00021961,2]
[313263712,1707057830786,1954.03188953,0.00021764,2]
[313263713,1707057830808,45.96811047,0.00021764,2]
[313263714,1707057847962,887.28344424,0.00021961,2]
[313263715,1707057867957,887.28344424,0.00021961,2]
[313263716,1707057868631,179.46500105,0.00019832,2]
[313263717,1707057868653,113.28499895,0.00019832,2]
[313263718,1707057868829,292.75,0.00022096,2]
[313263722,1707057885960,887.28344424,0.00022096,2]
[313263732,1707057903975,172.00696324,0.00022096,2]
[313263740,1707057943066,176.92,0.0002188,2]
[313263741,1707057944368,353.63,0.00022428,2]
[313263742,1707057947967,4.12459357,0.00021879,2]
[313263743,1707057947988,873.15329684,0.00021879,2]
[313263744,1707057980611,193.63,0.00021715,2]
[313263745,1707058026283,250.0,0.00021918,2]
[313263746,1707058032397,154.83597131,0.00022439,2]
[313263747,1707058106530,250.0,0.00021698,2]
[313263748,1707058163070,278.38073185,0.00021691,2]
[313263749,1707058163091,172.48926815,0.00021691,2]
[313263750,1707058187535,1827.51073185,0.0002168,2]
[313263751,1707058187558,2000.0,0.0002168,2]
[313263752,1707058187580,2000.0,0.0002168,2]
[313263753,1707058187602,2000.0,0.0002168,2]
[313263754,1707058187626,2000.0,0.0002168,2]
[313263755,1707058187647,2000.0,0.0002168,2]
[313263756,1707058187672,295.28926815,0.0002168,2]
[313263757,1707058190763,300.0,0.00022444,2]
[313263758,1707058203048,2976.2579,0.00022439,2]
[313263771,1707058231535,-385.82401621,0.00022522,2]
[313263772,1707058231545,-4714.92629925,0.00022522,2]
[313263773,1707058231554,-2605.36353515,0.00022523,2]
[313263774,1707058231564,-1049.14158098,0.00022523,2]
[313263775,1707058231573,-24430.71246918,0.00022523,2]
[313263776,1707058231583,-155.0,0.00022524,2]
[313263777,1707058231592,-3155.7006203,0.00022524,2]
[313263778,1707058231602,-1044.99592506,0.00022524,2]
[313263779,1707058231612,-4261.46684793,0.00022525,2]
[313263780,1707058231621,-691.8668423,0.00022525,2]
[313263781,1707058231631,-2911.79656407,0.00022525,2]
[313263782,1707058231640,-2327.88539827,0.00022526,2]
[313263783,1707058231650,-3638.00605379,0.00022526,2]
[313263784,1707058231659,-3552.43,0.00022529,2]
[313263785,1707058231669,-1440.0,0.00022533,2]
[313263786,1707058231679,-300.0,0.00022534,2]
[313263787,1707058231688,-150.0,0.00022534,2]
[313263788,1707058231697,-154.83597128,0.00022537,2]
[313263789,1707058231707,-150.0,0.00022548,2]
[313263790,1707058231715,-721.66,0.00022567,2]
[313263791,1707058231725,-725.64,0.00022577,2]
[313263792,1707058231738,-732.45,0.00022579,2]
[313263793,1707058231748,-715.31,0.00022581,2]
[313263794,1707058231757,-732.33,0.00022584,2]
[313263795,1707058231767,-713.04,0.00022585,2]
[313263796,1707058231777,-732.9,0.00022585,2]
[313263797,1707058231787,-735.47,0.00022585,2]
[313263798,1707058231796,-715.02,0.00022586,2]
[313263799,1707058231807,-726.16,0.00022587,2]
[313263800,1707058231821,-736.3,0.00022588,2]
[313263801,1707058231832,-716.53,0.00022589,2]
[313263803,1707058231842,-715.52,0.00022592,2]
[313263805,1707058231852,-730.15,0.00022597,2]
[313263807,1707058231862,-719.92,0.00022607,2]
[313263809,1707058231872,-728.71,0.00022634,2]
[313263811,1707058231881,-154.83597128,0.00022635,2]
[313263812,1707058231891,-492.4677124,0.00022649,2]
[313263813,1707058231901,-1312.7484856,0.00022656,2]
[313263815,1707058231910,-655.77301135,0.00022665,2]
[313263817,1707058231923,-78.15698865,0.00022665,2]
[313263819,1707058231932,-716.37,0.00022699,2]
[313263821,1707058231942,-166.32859424,0.00022722,2]
[313263823,1707058231951,-1944.7279,0.00022732,2]
[313263825,1707058231960,-154.83597128,0.00022733,2]
[313263827,1707058231969,-1929.16066193,0.00022777,2]
[313263829,1707058231981,-607.87823177,0.00022777,2]
[313263831,1707058231992,-280.56667432,0.00022777,2]
[313263833,1707058232004,-10505.42932262,0.00022777,2]
[313263835,1707058232013,-817.43473583,0.00022777,2]
[313263837,1707058232022,-13323.03489053,0.00022788,2]
[313263839,1707058232032,-499.99,0.00022798,2]
[313263841,1707058232041,-2701.14165102,0.00022799,2]
[313263843,1707058232053,-10621.89323951,0.00022799,2]
[313263845,1707058232062,-193.63,0.00022801,2]
[313263847,1707058232075,-13323.03489053,0.00022811,2]
[313263850,1707058232085,-1071.39875026,0.00022811,3]
[313263851,1707058232094,-164.80325067,0.00022817,2]
[313263852,1707058232104,-13323.03489053,0.00022822,2]
[313263853,1707058232114,-74148.4157275,0.00022829,3]
[313263854,1707058232126,-332924.3676615,0.00022829,3]
[313263855,1707058232142,-6035.59806615,0.00022829,3]
[313263856,1707058232153,-499.05471673,0.00022829,3]
[313263857,1707058232165,-528.57058112,0.00022829,3]
[313263858,1707058232650,-13692.08323658,0.00022829,3]
[313263859,1707058232662,-581.92813806,0.00022829,3]
[313263860,1707058232683,-458.45,0.00022829,3]
[313263861,1707058232694,-268.9043118,0.00022829,3]
[313263862,1707058232706,-1971.44374651,0.00022829,3]
[313263863,1707058232717,-8666.40459909,0.00022829,3]
[313263871,1707058237566,-645.99305523,0.00022829,3]
[313263872,1707058237578,-2490.97927769,0.00022829,3]
[313263873,1707058237622,-4006.03161746,0.00022829,3]
[313263874,1707058237634,-549.198013,0.00022829,3]
[313263875,1707058237677,-1427.60393072,0.00022829,3]
[313263876,1707058237689,-541.52603415,0.00022829,3]
[313263877,1707058237702,-7372.25454139,0.00022829,3]
[313263878,1707058237737,-1107.0,0.00022829,3]
[313263879,1707058237794,-2002.63818141,0.00022829,3]
[313263880,1707058237808,-5095.36486861,0.00022829,3]
[313263881,1707058237850,-21299.99999998,0.00022829,3]
[313263882,1707058237861,-1058.031975,0.00022829,3]
[313263883,1707058237872,-305.24233635,0.00022829,3]
[313263884,1707058237885,-1273.1094443,0.00022829,3]
[313263885,1707058237906,-24057.17617116,0.00022829,3]
[313263886,1707058237917,-76722.07591596,0.00022829,3]
[313263887,1707058237928,-80548.6903976,0.00022829,3]
[313263888,1707058237939,-563.68163121,0.00022829,3]
[313263889,1707058238328,1299.22183534,0.00022493,2]
[313263892,1707058240114,-254.37445027,0.00022789,2]
[313263894,1707058240124,-1.53873573,0.00022829,3]
[313263898,1707058240221,-5771.59845604,0.00022829,3]
[313263902,1707058242553,-1227.15657906,0.00022829,3]
[313263903,1707058242565,-2605.40472358,0.00022829,3]
[313263911,1707058242661,-299.69259314,0.00022829,3]
[313263912,1707058242718,-1974.0000005,0.00022829,3]
[313263913,1707058242773,-1428.02506744,0.00022829,3]
[313263914,1707058242829,-2177.26682898,0.00022829,3]
[313263915,1707058242886,-413007.68197323,0.00022829,3]
[313263916,1707058242896,-13323.03489053,0.00022833,2]
[313263917,1707058242905,-13323.03489053,0.00022844,2]
[313263918,1707058242914,-13323.03489053,0.00022855,2]
[313263919,1707058242924,-420.65248789,0.00022864,2]
[313263920,1707058242934,-13323.03489053,0.00022866,2]
[313263921,1707058242943,-165.37513605,0.00022875,2]
[313263922,1707058242952,-1375.73990957,0.00022875,2]
[313263923,1707058242962,-2152.72225271,0.00022875,2]
[313263924,1707058242971,-505.57440672,0.00022875,2]
[313263925,1707058242981,-388.21422797,0.00022875,2]
[313263926,1707058242990,-4501.54867596,0.00022875,2]
[313263927,1707058242999,-232.76746862,0.00022876,2]
[313263928,1707058243009,-4640.60516449,0.00022876,2]
[313263929,1707058243018,-203.71035368,0.00022877,2]
[313263930,1707058243028,-13323.03489053,0.00022878,2]
[313263931,1707058243037,-257.48564387,0.00022878,2]
[313263932,1707058243047,-419.32966708,0.00022878,2]
[313263933,1707058243057,-613.0,0.00022879,2]
[313263934,1707058243067,-953244.53689198,0.0002288,2]
[313263935,1707058243080,-46755.46310802,0.0002288,2]
[313263936,1707058243090,-13323.03489053,0.00022889,2]
[313263937,1707058243099,-631.69899155,0.00022896,2]
[313263938,1707058243108,-155.19708348,0.00022897,2]
[313263939,1707058243118,-923.07697228,0.00022898,2]
[313263940,1707058243128,-294.08825561,0.00022898,2]
[313263941,1707058243138,-414.75635579,0.00022898,2]
[313263942,1707058243147,-5228.78655032,0.00022898,2]
[313263943,1707058243157,-180.80090215,0.00022898,2]
[313263944,1707058243166,-522.6703822,0.00022898,2]
[313263945,1707058243175,-162.24967733,0.00022898,2]
[313263946,1707058243185,-9053.50513317,0.00022898,2]
[313263947,1707058243195,-155.20630276,0.00022898,2]
[313263948,1707058243204,-500.0,0.00022898,2]
[313263949,1707058243214,-156.07370626,0.00022898,2]
[313263950,1707058243223,-1181.18217317,0.00022898,2]
[313263951,1707058243232,-732.55,0.00022899,2]
[313263952,1707058243242,-210.38872534,0.00022899,2]
[313263953,1707058243251,-244.74021785,0.00022899,2]
[313263954,1707058243260,-720.63,0.000229,2]
[313263955,1707058243270,-143844.73111193,0.000229,2]
[313263956,1707058243279,-1000.0,0.000229,2]
[313263957,1707058243289,-4857.46925957,0.000229,2]
[313263958,1707058243298,-153.26427313,0.000229,2]
[313263959,1707058243308,-13323.03489053,0.000229,2]
[313263960,1707058243318,-816.0,0.00022955,2]
[313263961,1707058243327,-2868.0,0.00022955,2]
[313263962,1707058243336,-342.0,0.00022955,2]
[313263963,1707058243345,-833.393,0.00022955,2]
[313263964,1707058243354,-13460.97,0.00022955,2]
[313263965,1707058243364,-2282.0,0.00022955,2]
[313263966,1707058243373,-1613.601,0.00022955,2]
[313263967,1707058243382,-754757.54062566,0.0002298,2]
[313264010,1707058245710,-387.4504772,0.00022828,2]
[313264011,1707058247536,-667.39903849,0.00022828,2]
[313264012,1707058247549,-1854.66238122,0.00022828,2]
[313264013,1707058247559,-1720.54856056,0.00022828,2]
[313264014,1707058247571,-505.39806324,0.00022828,2]
[313264015,1707058247582,-245149.50030979,0.00022828,2]
[313264016,1707058267840,2000.0,0.0002219,2]
[313264017,1707058282865,204.76,0.00021973,2]
[313264018,1707058301541,294.08,0.0001996,2]
[313264019,1707058301750,294.08,0.00022224,2]
[313264021,1707058366341,2774.61992536,0.00021799,2]
[313264022,1707058367002,420.3224339,0.000218,2]
[313264023,1707058370910,1000.0,0.00021756,2]
[313264024,1707058380157,222.50250077,0.00022481,4]
[313264025,1707058394053,155.0,0.000218,2]
[313264026,1707058401679,155.0,0.000218,2]
[313264027,1707058426649,1099.06361557,0.000218,2]
[313264028,1707058438081,281.21826851,0.000218,2]
[313264029,1707058451555,567.35,0.0002,2]
[313264030,1707058458100,18000.0,0.00022482,2]
[313264032,1707058526586,550.0,0.00022,3]
[313264033,1707058552962,250.0,0.00021659,2]
[313264034,1707058558610,250.0,0.00021918,2]
[313264035,1707058621897,248.0,0.000225,2]
[313264036,1707058622038,150.0,0.000225,2]
[313264037,1707058622137,150.0,0.000225,2]
[313264038,1707058632149,2314.94205742,0.000225,2]
[313264039,1707058632322,-600.0,0.00022501,2]
[313264040,1707058635427,3638.00605379,0.000225,2]
[313264041,1707058655621,1049.14158098,0.000225,2]
[313264042,1707058656257,4261.46684793,0.000225,2]
[313264043,1707058665602,1044.99592506,0.000225,2]
[313264044,1707058681450,505.80842306,0.000225,2]
[313264045,1707058697449,480.22,0.0002168,2]
[313264046,1707058700315,174.11,0.0002168,2]
[313264047,1707058713114,151.04,0.00021837,2]
[313264048,1707058713335,151.04,0.00021941,2]
[313264049,1707058713534,151.04,0.00022044,2]
[313264050,1707058713754,151.04,0.00022148,2]
[313264051,1707058713973,151.04,0.00022251,2]
[313264052,1707058714199,151.04,0.00022355,2]
[313264053,1707058714242,5132.25152857,0.00020434,5]
[313264054,1707058714416,151.04,0.00022458,2]
[313264055,1707058729383,2806.15728944,0.00021569,7]
[313264056,1707058734225,472.62262063,0.00020434,5]
[313264058,1707058738164,950.0,0.00021664,2]
[313264059,1707058738321,273.24577397,0.0002168,15]
[313264060,1707058740277,1281.9469039,0.0002168,5]
[313264061,1707058741677,290.50182366,0.00022,4]
[313264062,1707058745126,2930.78079132,0.00022,7]
[313264063,1707058746155,150.0,0.00021707,2]
[313264064,1707058756289,273.24577397,0.0002168,15]
[313264065,1707058760278,168.70083656,0.0002168,5]
[313264066,1707058762416,398.629243,0.0002288,6]
[313264067,1707058767606,398.629243,0.00022885,6]
[313264068,1707058772461,398.629243,0.0002289,6]
[313264069,1707058773883,200.0,0.00021721,2]
[313264070,1707058776294,273.24577397,0.00021707,15]
[313264071,1707058777415,398.629243,0.00022895,6]
[313264072,1707058777881,200.0,0.00021659,2]
[313264073,1707058782417,398.629243,0.000229,6]
[313264074,1707058794298,273.24577397,0.00021707,15]
[313264075,1707058796259,4261.46684793,0.000225,2]
[313264076,1707058802552,4714.92629925,0.000225,2]
[313264077,1707058802765,155.0,0.000225,2]
[313264078,1707058812303,188.5041533,0.00021707,15]
[313264079,1707058818202,297.43,0.00019753,2]
[313264080,1707058818423,297.43,0.00022017,2]
[313264083,1707058849404,153.3,0.00021666,2]
[313264086,1707058941804,50540.6405,0.00022498,2]
[313264096,1707058986005,250.0,0.00021669,2]
[313264104,1707059090045,150.0,0.00022474,2]
[313264105,1707059104801,7140.01158434,0.00022698,5]
[313264106,1707059108101,155.59,0.00021665,2]
[313264107,1707059133744,200.0,0.00022088,2]
[313264108,1707059134990,250.0,0.00021918,2]
[313264111,1707059146150,828.7,0.00021669,2]
[313264112,1707059148926,153.59,0.00021831,2]
[313264113,1707059149144,153.59,0.00021994,2]
[313264114,1707059149350,153.59,0.00022156,2]
[313264115,1707059149568,153.59,0.00022319,2]
[313264116,1707059149777,153.59,0.00022481,2]
[313264117,1707059151489,503.92,0.00021673,2]
[313264118,1707059156441,-401.96625764,0.00022501,2]
[313264119,1707059156465,-731.97994428,0.00022501,2]
[313264120,1707059156487,-24430.71246918,0.00022502,2]
[313264121,1707059156512,-445.69258364,0.00022509,2]
[313264122,1707059201896,257.9,0.00021702,2]
[313264123,1707059203228,257.9,0.00021839,2]
[313264124,1707059204511,257.9,0.00021976,2]
[313264125,1707059205772,264.70732429,0.00022113,2]
[313264126,1707059213813,311.94241579,0.00021702,2]
[313264129,1707059248925,840.0,0.00021647,2]
[313264131,1707059288393,274.03243874,0.0002288,6]
[313264132,1707059288581,302.15,0.00019725,2]
[313264133,1707059288800,302.15,0.00021989,2]
[313264134,1707059293418,274.0324387,0.00022885,6]
[313264135,1707059298397,274.0324387,0.0002289,6]
[313264136,1707059303597,274.0324387,0.00022895,6]
[313264137,1707059308444,274.0324387,0.000229,6]
[313264160,1707059412342,250.0,0.00021631,2]
[313264164,1707059420063,150.0,0.00021699,2]
[313264181,1707059431723,-323.75358582,0.00022582,2]
[313264182,1707059431735,-314.47830538,0.00022582,2]
[313264183,1707059431780,-71.3581088,0.00022582,2]
[313264184,1707059431789,-730.29,0.00022582,2]
[313264185,1707059431798,-153.34421669,0.00022582,2]
[313264186,1707059431810,-474.43698901,0.00022582,2]
[313264187,1707059431889,-84.7387943,0.00022582,2]
[313264188,1707059431899,-734.22,0.00022582,2]
[313264189,1707059431908,-722.89,0.00022582,2]
[313264190,1707059431918,-726.68,0.00022582,2]
[313264191,1707059431927,-735.49,0.00022582,2]
[313264192,1707059431936,-719.94,0.00022582,2]
[313264193,1707059431946,-713.64,0.00022582,2]
[313264203,1707059432149,-733.77,0.00022582,2]
[313264204,1707059432161,-729.09,0.00022582,2]
[313264205,1707059432173,-733.6,0.00022583,2]
[313264206,1707059432187,-738.02,0.00022584,2]
[313264207,1707059432197,-712.19,0.00022586,2]
[313264208,1707059432206,-16.52302848,0.00022591,2]
[313264209,1707059432237,-705.49697152,0.00022591,2]
[313264210,1707059432247,-499.99,0.00022591,2]
[313264211,1707059432258,-734.17,0.00022591,2]
[313264212,1707059432268,-174.62,0.00022591,2]
[313264213,1707059432279,-1666.16,0.00022591,2]
[313264214,1707059432289,-316.44439604,0.00022593,2]
[313264215,1707059432301,-399.92560396,0.00022593,2]
[313264216,1707059432311,-732.96,0.00022593,2]
[313264217,1707059432320,-8897.67,0.00022593,2]
[313264218,1707059432330,-13048.1675968,0.00022593,2]
[313264219,1707059432342,-5566.1624032,0.00022593,2]
[313264220,1707059432351,-729.82,0.00022595,2]
[313264221,1707059432362,-2515.54,0.00022595,2]
[313264222,1707059432372,-350.21,0.00022595,2]
[313264223,1707059432381,-32345.90819091,0.00022597,2]
[313264224,1707059432393,-779.27224229,0.00022597,2]
[313264225,1707059432406,-1241.40616101,0.00022597,2]
[313264226,1707059432417,-727.79,0.00022598,2]
[313264227,1707059432427,-334.92005643,0.00022598,2]
[313264228,1707059432438,-862.90197581,0.00022598,2]
[313264229,1707059439144,-20579.16852301,0.00022598,2]
[313264230,1707059439154,-8713.278,0.00022598,2]
[313264231,1707059439163,-213.72159226,0.00022598,2]
[313264232,1707059439177,-1912.68521462,0.00022598,2]
[313264234,1707059439186,-178.05123538,0.00022598,2]
[313264236,1707059439195,-636.68311941,0.00022598,2]
[313264237,1707059439204,-1165.26012388,0.00022599,2]
[313264238,1707059439214,-169.58296684,0.00022599,2]
[313264239,1707059439223,-468.86166208,0.00022599,2]
[313264240,1707059439232,-637.03733455,0.00022601,2]
[313264241,1707059439246,-5000.0,0.00022602,2]
[313264242,1707059439259,-162.83781801,0.00022606,2]
[313264243,1707059439269,-999.4697,0.0002261,2]
[313264244,1707059439277,-637.03733448,0.00022628,2]
[313264245,1707059439287,-1912.68521456,0.00022641,2]
[313264246,1707059439296,-153.59,0.00022644,2]
[313264247,1707059439305,-637.03733448,0.00022655,2]
[313264248,1707059439314,-637.03733448,0.00022683,2]
[313264249,1707059439323,-1912.68521456,0.00022684,2]
[313264250,1707059439334,-725.1703703,0.00022688,2]
[313264251,1707059439343,-725.1703703,0.00022689,2]
[313264252,1707059439355,-160.80106563,0.00022697,2]
[313264253,1707059439364,-421.35704856,0.00022697,2]
[313264254,1707059439374,-1124667.09156697,0.00022698,3]
[313264255,1707059439383,-2313.28828802,0.00022698,2]
[313264256,1707059439395,-291.6449996,0.00022698,2]
[313264257,1707059439406,-696.73272772,0.00022698,2]
[313264258,1707059439416,-1603.53933867,0.00022698,2]
[313264259,1707059439425,-326.59977459,0.00022698,2]
[313264260,1707059439435,-4275.01257559,0.00022699,2]
[313264261,1707059439444,-500.0,0.00022699,2]
[313264262,1707059439453,-500.0,0.00022699,2]
[313264263,1707059439463,-500.0,0.00022699,2]
[313264264,1707059439474,-500.0,0.00022699,2]
[313264265,1707059439483,-500.0,0.00022699,2]
[313264266,1707059439492,-500.0,0.00022699,2]
[313264267,1707059439501,-500.0,0.00022699,2]
[313264268,1707059439511,-500.0,0.00022699,2]
[313264269,1707059439520,-500.0,0.00022699,2]
[313264270,1707059439530,-500.0,0.00022699,2]
[313264271,1707059439540,-500.0,0.00022699,2]
[313264272,1707059439549,-500.0,0.00022699,2]
[313264273,1707059439558,-262.78283229,0.00022699,2]
[313264274,1707059439568,-409.32347083,0.00022699,2]
[313264275,1707059439577,-500.0,0.00022699,2]
[313264276,1707059439587,-500.0,0.00022699,2]
[313264277,1707059439596,-500.0,0.00022699,2]
[313264279,1707059439605,-500.0,0.00022699,2]
[313264280,1707059439614,-500.0,0.00022699,2]
[313264281,1707059439623,-500.0,0.00022699,2]
[313264282,1707059439633,-500.0,0.00022699,2]
[313264283,1707059439642,-500.0,0.00022699,2]
[313264284,1707059439651,-500.0,0.00022699,2]
[313264285,1707059439660,-500.0,0.00022699,2]
[313264286,1707059439670,-500.0,0.00022699,2]
[313264287,1707059439679,-500.0,0.00022699,2]
[313264288,1707059439688,-500.0,0.00022699,2]
[313264289,1707059439698,-500.0,0.00022699,2]
[313264290,1707059439708,-42028.48,0.000227,2]
[313264291,1707059439717,-648.0,0.00022704,2]
[313264292,1707059439725,-2208.94318922,0.00022704,2]
[313264293,1707059439736,-635.6938339,0.00022705,2]
[313264294,1707059439746,-383.97991713,0.00022705,2]
[313264295,1707059439755,-231.10275425,0.00022705,2]
[313264296,1707059439765,-727.03247565,0.00022706,2]
[313264297,1707059439774,-294.50013821,0.00022706,2]
[313264298,1707059439784,-1000.29285377,0.00022709,2]
[313264299,1707059439794,-2158.83093085,0.00022709,2]
[313264300,1707059439803,-203.05060201,0.00022709,2]
[313264301,1707059439813,-386.58368493,0.00022709,2]
[313264302,1707059439823,-155.6573906,0.00022709,2]
[313264303,1707059439832,-1060572.23165923,0.00022709,2]
[313264304,1707059439841,-155.52266127,0.0002271,2]
[313264305,1707059439852,-947.08134759,0.0002271,2]
[313264306,1707059439862,-177.58629654,0.0002271,2]
[313264307,1707059439872,-637.03733448,0.0002271,2]
[313264308,1707059439881,-106322.9538,0.00022711,2]
[313264309,1707059439891,-9575.5784,0.00022711,2]
[313264310,1707059439900,-348.1296,0.00022716,2]
[313264311,1707059439910,-1000.0,0.00022716,2]
[313264312,1707059439923,-1912.68521456,0.00022727,2]
[313264313,1707059439932,-637.03733448,0.00022737,2]
[313264314,1707059439942,-153.3,0.00022749,2]
[313264315,1707059439951,-1510.35896167,0.0002275,2]
[313264316,1707059439964,-1165.26012386,0.0002275,2]
[313264317,1707059439973,-169.58296684,0.0002275,2]
[313264318,1707059439983,-468.86166207,0.0002275,2]
[313264319,1707059439992,-200.0,0.00022757,2]
[313264320,1707059440001,-637.03733448,0.00022764,2]
[313264321,1707059440011,-1912.68521456,0.00022771,2]
[313264322,1707059440020,-637.03733448,0.00022791,2]
[313264323,1707059440030,-414.17,0.00022795,2]
[313264324,1707059440039,-153.59,0.00022806,2]
[313264325,1707059440050,-1912.68521456,0.00022814,2]
[313264326,1707059440060,-637.03733448,0.00022818,2]
[313264327,1707059440069,-160.94007495,0.00022824,2]
[313264328,1707059440078,-544.35199415,0.00022826,2]
[313264329,1707059440088,-338.48887294,0.00022826,2]
[313264330,1707059440097,-423.24642695,0.00022826,2]
[313264331,1707059440107,-583.66541534,0.00022826,2]
[313264332,1707059440117,-232.86949324,0.00022826,2]
[313264333,1707059440127,-1970.83647367,0.00022826,2]
[313264334,1707059440136,-1244.38918091,0.00022826,2]
[313264335,1707059440146,-1857.32583047,0.00022826,2]
[313264336,1707059440155,-358.43337229,0.00022826,2]
[313264337,1707059440164,-155.0,0.00022826,2]
[313264338,1707059440177,-157.79806514,0.00022826,2]
[313264340,1707059440188,-155.0,0.00022826,2]
[313264343,1707059440198,-413.22910588,0.00022826,2]
[313264346,1707059440207,-155.69363516,0.00022826,2]
[313264348,1707059440218,-155.45190428,0.00022826,2]
[313264351,1707059440227,-475.84102699,0.00022826,2]
[313264354,1707059440236,-282.08995367,0.00022826,2]
[313264357,1707059440245,-189.09067741,0.00022826,2]
[313264359,1707059440256,-155.0,0.00022826,2]
[313264361,1707059440267,-156.55407686,0.00022826,2]
[313264363,1707059440276,-157.38365888,0.00022826,2]
[313264365,1707059440285,-294.1014109,0.00022826,2]
[313264369,1707059440295,-245.5740509,0.00022826,2]
[313264370,1707059440304,-264.1261331,0.00022826,2]
[313264373,1707059440314,-1824.78141952,0.00022826,2]
[313264375,1707059440324,-155.0,0.00022826,2]
[313264377,1707059440333,-155.0,0.00022826,2]
[313264379,1707059440342,-943.04853509,0.00022826,2]
[313264381,1707059440353,-2139.03626942,0.00022826,2]
[313264383,1707059440363,-3185.62367316,0.00022826,2]
[313264384,1707059440372,-155.0,0.00022826,2]
[313264385,1707059440382,-257.41602689,0.00022826,2]
[313264386,1707059440391,-299.00498181,0.00022826,2]
[313264387,1707059440401,-155.0,0.00022826,2]
[313264388,1707059440411,-155.0,0.00022826,2]
[313264389,1707059440420,-221.04924005,0.00022826,2]
[313264390,1707059440429,-155.5061631,0.00022826,2]